Cogmind - Beta 13 @@@ ROGUE MODE // 2024.04.02 @ 15:33:18 Player: buwwet Result: Destroyed by G-47 Trooper with Particle Gun Performance ------------- Evolutions (2) 1000 Regions Visited (4) 800 Robots Destroyed (32) 160 Value Destroyed (665) 665 Prototype IDs (0) 0 Alien Tech Used (0) 0 Bonus (0) 0 TOTAL SCORE: 2625 Bonus ------- None Cogmind --------- Core Integrity 0/550 Matter 135/300 Energy 100/100 System Corruption 0% Temperature Cool (9) Movement Walking (200) Ox1 Location -8/Materials Parts ------- > --- POWER (2) -------- (None) > --- PROPULSION (2) --- Titanium Leg > --- UTILITY (4) ------ Large Storage Unit > --- WEAPON (3) ------- (None) > --- INVENTORY (15) --- Improved Targeting Computer Peak State ------------ > --- POWER ------------ Improved Ion Engine > --- PROPULSION ------- Aluminum Leg Aluminum Leg > --- UTILITY ---------- Medium Battery High-capacity Matter Pod Hardened Light Armor Plating > --- WEAPON ----------- Heavy Assault Rifle Improved Light Cannon Rocket Launcher > --- INVENTORY -------- Light Ion Engine Light Treads ECM Suite [Rating: 14] Favorites ----------- Power Improved Ion Engine Engine Improved Ion Engine Propulsion Aluminum Leg Treads Light Treads Leg Aluminum Leg Wheel Wheel Utility Medium Battery Device ECM Suite Storage Medium Battery Protection Hardened Light Armor Plating Weapon Heavy Assault Rifle Energy Gun Medium Laser Ballistic Gun Heavy Assault Rifle Ballistic Cannon Improved Light Cannon Launcher Grenade Launcher Build | -11 -10 -10 -9 -8 ------- Run | Yrd Mat Min Mat Mat Slots Evolved 4 | . . . 2 2 Power 1 | . . . . 1 Propulsion . | . . . . . Utility 2 | . . . 1 1 Weapon 1 | . . . 1 . Parts Attached 32 | 5 4 1 11 11 Power 5 | 1 . . 3 1 Engine 5 | 1 . . 3 1 Core . | . . . . . Reactor . | . . . . . Propulsion 8 | 2 . . 2 4 Treads 1 | . . . . 1 Leg 5 | . . . 2 3 Wheel 2 | 2 . . . . Hover . | . . . . . Flight . | . . . . . Utility 6 | . 1 1 2 2 Device 1 | . . . . 1 Storage 3 | . 1 1 . 1 Processor . | . . . . . Hackware . | . . . . . Protection 2 | . . . 2 . Artifact . | . . . . . Weapon 13 | 2 3 . 4 4 Energy Gun 4 | 2 1 . . 1 Energy Cannon . | . . . . . Ballistic Gun 6 | . 1 . 2 3 Ballistic Cannon 1 | . . . 1 . Launcher 2 | . 1 . 1 . Special Weapon . | . . . . . Impact Weapon . | . . . . . Slashing Weapon . | . . . . . Piercing Weapon . | . . . . . Special Melee Weapon . | . . . . . Unidentified Prototypes . | . . . . . Parts Lost 22 | . 2 . 4 16 Power 3 | . 1 . . 2 Propulsion 5 | . . . 1 4 Utility 4 | . . . . 4 Weapon 10 | . 1 . 3 6 Highest Loss Streak 7 | . 1 . 3 7 To Critical Strikes . | . . . . . Average Slot Usage (%) 74 | . 66 84 85 54 Engine 5 | . 6 . 9 2 Leg 10 | . . . 17 12 Wheel 9 | . 28 28 1 . Device 2 | . . . . 7 Storage 17 | . 3 27 17 13 Protection 6 | . . . 14 3 Energy Gun 6 | . 17 14 . 4 Ballistic Gun 6 | . 2 . 11 6 Ballistic Cannon 3 | . . . 8 2 Launcher 5 | . 8 14 5 . Naked Turns . | . . . . . Heaviest Build 29 | 7 9 11 29 29 Greatest Support 32 | 20 20 20 20 32 Greatest Overweight (x) 4 | . . . 2 4 Average Overweight (x) . | . . . 1 1 Largest Inventory Capacity 15 | 5 5 5 5 15 Average Capacity 6 | 5 5 5 5 11 Most Carried 5 | 3 5 5 5 5 Average Carried 3 | . 3 4 3 1 Final Capacity 15 | 5 5 5 5 15 Final Carried 5 | 2 4 5 5 1 Class Distribution -------------------- 69% | Mutant 19% | Scavenger-Mutant 6% | Tank 3% | Scavenger-Tank Dominant Class ---------------- Mutant | -10/Materials Mutant | -10/Mines Scavenger-Mutant | -9/Materials Mutant | -8/Materials Resources | -11 -10 -10 -9 -8 ----------- Run | Yrd Mat Min Mat Mat Matter Collected 550 | 250 40 34 130 96 Remotely . | . . . . . Salvage Created 634 | 37 85 . 219 293 Parts 58 | 4 7 . 25 22 Haulers Intercepted . | . . . . . Recyclers Shooed . | . . . . . Parts Field Recycled . | . . . . . Retrieved Matter . | . . . . . Parts Self-Destructed . | . . . . . Prevented . | . . . . . Kills | -11 -10 -10 -9 -8 ------- Run | Yrd Mat Min Mat Mat Combat Hostiles Destroyed 26 | 1 6 . 9 10 Guns 10 | 1 1 . 2 6 Cannons 6 | . . . 2 4 AOE 10 | . 5 . 5 . Classes Destroyed 8 | 1 2 . 3 2 Tunneler 1 | . . . 1 . Recycler 2 | . . . . 2 Operator 2 | . 1 . . 1 Watcher 1 | . . . 1 . Swarmer 15 | . 3 . 4 8 Grunt 7 | 1 3 . 3 . Sentry 2 | . . . 2 . Hunter 2 | . . . . 2 Best Kill Streak 6 | 1 6 . 5 6 Combat Bots Only 5 | 1 5 . 5 4 Max Kills in Single Turn 4 | 1 4 . 2 2 Gunslinging . | . . . . . Exploded 3 | . 3 . 2 . Melee . | . . . . . Uniques/NPCs Destroyed . | . . . . . Combat | -11 -10 -10 -9 -8 -------- Run | Yrd Mat Min Mat Mat Hostile Shots Fired 299 | 2 30 . 54 213 Missed 74 | 2 4 . 19 49 Damage Taken 2796 | . 328 . 410 2058 Core 685 | . 63 . 60 562 Absorbed by Shields . | . . . . . Regen/Repaired (Parts) 52 | . . . 52 . Core Remaining (%) 86 | 100 . 74 85 . Volleys Fired 79 | 2 18 . 17 42 Largest 3 | 2 2 . 3 3 Hottest 103 | 90 90 . 103 83 Shots Fired 135 | 4 29 . 33 69 Gun 99 | 4 24 . 18 53 Cannon 24 | . . . 8 16 Launcher 12 | . 5 . 7 . Special . | . . . . . Kinetic 80 | . 4 . 25 51 Thermal 32 | 2 11 . 1 18 Explosive 12 | . 5 . 7 . Electromagnetic 11 | 2 9 . . . Robot Hit Streak 5 | 3 4 . 5 5 Robot Miss Streak 5 | . 2 . 4 5 Penetration Max . | . . . . . Secondary Targets . | . . . . . Shots Hit Robots 76 | 3 19 . 20 34 Core Hits 49 | 2 10 . 15 22 Critical Kills . | . . . . . Critical Parts Destroyed 1 | . 1 . . . Critical Strikes 1 | . 1 . . . Destroy 1 | . 1 . . . Melee Attacks . | . . . . . Impact . | . . . . . Slashing . | . . . . . Piercing . | . . . . . Sneak Attacks . | . . . . . Combat Hostiles . | . . . . . Follow-up Attacks . | . . . . . Damage Inflicted 1732 | 40 612 . 486 594 Guns 719 | 40 193 . 126 360 Cannons 315 | . . . 100 215 Explosions 679 | . 419 . 260 . Melee . | . . . . . Ramming 19 | . . . . 19 Kinetic 620 | . 16 . 213 391 Thermal 380 | 12 171 . 13 184 Explosive 610 | . 350 . 260 . Electromagnetic 103 | 28 75 . . . Impact . | . . . . . Slashing . | . . . . . Piercing . | . . . . . Highest Corruption . | . . . . . Average Corruption . | . . . . . Corruption Purged . | . . . . . Corruption Blocked . | . . . . . Overload Shots . | . . . . . Overflow Damage 34 | . 31 . . 3 Projectiles 3 | . . . . 3 Explosions 31 | . 31 . . . Melee . | . . . . . Knockbacks 3 | . . . . 3 Impact . | . . . . . Kinetic 3 | . . . . 3 Secondary . | . . . . . Self-Inflicted Damage . | . . . . . Shots . | . . . . . Rammed . | . . . . . Targets Rammed 12 | . . . . 12 Kicked 12 | . . . . 12 Crushed . | . . . . . Highest Temperature 239 | 40 239 . 69 65 Average Temperature 59 | 22 118 . 27 17 Received Heat Transfer 717 | . 174 . 162 381 Effects 2 | . 2 . . . Interference 2 | . 2 . . . Siege Activations . | . . . . . Robots Corrupted . | . . . . . Combat Hostiles . | . . . . . Parts Fried . | . . . . . Impact Corruptions . | . . . . . Robots Melted . | . . . . . Combat Hostiles . | . . . . . Parts Melted . | . . . . . Heat Transferred 877 | 37 396 . 37 407 Parts Sabotaged . | . . . . . Parts Stolen . | . . . . . Parts Stripped . | . . . . . Power Chain Reactions 1 | . 1 . . . Alert | -11 -10 -10 -9 -8 ------- Run | Yrd Mat Min Mat Mat Peak Influence 228 | 20 228 30 184 165 Initial 30 | . 13 30 11 . Average 61 | 3 84 30 65 79 Maximum Alert Level 1 | . 1 . . . Low Security (%) 98 | 100 88 100 100 100 Level 1 1 | . 11 . . . Level 2 . | . . . . . Level 3 . | . . . . . Level 4 . | . . . . . Level 5 . | . . . . . High Security . | . . . . . Max Security . | . . . . . Squads Dispatched 7 | . 2 . 1 4 Investigation 2 | . . . 1 1 Extermination . | . . . . . Reinforcement 3 | . 2 . . 1 Assault . | . . . . . Garrison 2 | . . . . 2 Intercept . | . . . . . Searches Triggered . | . . . . . Construction Impeded . | . . . . . Haulers Reinforced . | . . . . . Active Scanning Responses . | . . . . . Cargo Convoy Interrupts . | . . . . . Stealth | -11 -10 -10 -9 -8 --------- Run | Yrd Mat Min Mat Mat Distress Signals 5 | . 1 . 4 . Communications Jammed . | . . . . . Distress Signals . | . . . . . Times Spotted 47 | 1 10 . 10 26 Peak Tracking Total 7 | 1 4 . 5 7 Tactical Retreats 2 | . 1 . . 1 Traps | -11 -10 -10 -9 -8 ------- Run | Yrd Mat Min Mat Mat Traps Triggered . | . . . . . Indirectly . | . . . . . Trap Hack Attempts . | . . . . . Triggered . | . . . . . Disarmed . | . . . . . Reprogrammed . | . . . . . Reused . | . . . . . Traps Extracted . | . . . . . Installed . | . . . . . Triggered . | . . . . . Machines | -11 -10 -10 -9 -8 ---------- Run | Yrd Mat Min Mat Mat Machines Disabled 1 | . 1 . . . Max in Single Turn 1 | . 1 . . . Machines Repaired . | . . . . . Machines Dismantled . | . . . . . Machines Sabotaged . | . . . . . Overloaded Fab Kills . | . . . . . Hacking | -11 -10 -10 -9 -8 --------- Run | Yrd Mat Min Mat Mat Machines Accessed 7 | . 3 . 2 2 Terminals 6 | . 3 . 1 2 Fabricators . | . . . . . Repair Stations 1 | . . . 1 . Recycling Units . | . . . . . Scanalyzers . | . . . . . Garrison Access . | . . . . . Total Hacks 26 | . 10 . 9 7 Successful 12 | . 6 . 4 2 Failed 14 | . 4 . 5 5 Catastrophic 6 | . 3 . 1 2 Database Lockouts . | . . . . . Manual 11 | . 6 . 1 4 Terminals 21 | . 10 . 4 7 Fabricators . | . . . . . Repair Stations 5 | . . . 5 . Recycling Units . | . . . . . Scanalyzers . | . . . . . Garrison Access . | . . . . . Terminal Hacks 10 | . 6 . 2 2 Record 4 | . 3 . . 1 Robot Analysis 1 | . . . 1 . Alert Level 1 | . 1 . . . Unreport Threat 4 | . 2 . 1 1 Fabricator Hacks . | . . . . . Repair Station Hacks 2 | . . . 2 . Scan Component 1 | . . . 1 . Repair 1 | . . . 1 . Recycling Unit Hacks . | . . . . . Scanalyzer . | . . . . . Garrison Access Hacks . | . . . . . Unauthorized Hacks . | . . . . . Terminals . | . . . . . Fabricators . | . . . . . Repair Stations . | . . . . . Recycling Units . | . . . . . Scanalyzers . | . . . . . Garrison Access . | . . . . . Data Cores Recovered 1 | . 1 . . . Used . | . . . . . Hacking Detections 6 | . 3 . 1 2 Full Trace Events 4 | . 2 . 1 1 Feedback Events . | . . . . . Feedback Blocked . | . . . . . Robot Schematics Acquired . | . . . . . Robots Built . | . . . . . Authchips . | . . . . . Time . | . . . . . Total Robot Build Rating . | . . . . . Part Schematics Acquired . | . . . . . Parts Built . | . . . . . Authchips . | . . . . . Time . | . . . . . Total Part Build Rating . | . . . . . Parts Repaired 1 | . . . 1 . Time 32 | . . . 32 . Parts Recycled . | . . . . . Recycled Matter . | . . . . . Retrieved Matter . | . . . . . Retrieved Components . | . . . . . Parts Scanalyzed . | . . . . . Part Schematics Acquired . | . . . . . Parts Damaged . | . . . . . Bothacking | -11 -10 -10 -9 -8 ------------ Run | Yrd Mat Min Mat Mat Used RIF Installer . | . . . . . Robots Hacked . | . . . . . Non-combat . | . . . . . Combat . | . . . . . Robot Hacks Applied . | . . . . . Relay Couplers Released . | . . . . . Fabnet Peak Effective % . | . . . . . Robots Rewired . | . . . . . Allies Hacked . | . . . . . Hacks Repelled . | . . . . . Allies | -11 -10 -10 -9 -8 -------- Run | Yrd Mat Min Mat Mat Total Allies . | . . . . . Largest Group . | . . . . . Highest-Rated Group . | . . . . . Highest-Rated Ally . | . . . . . Total Orders . | . . . . . Ally Attacks . | . . . . . Total Damage . | . . . . . Kills . | . . . . . Allies Corrupted . | . . . . . Allies Melted . | . . . . . Intel | -11 -10 -10 -9 -8 ------- Run | Yrd Mat Min Mat Mat Robot Analysis Total 1 | . . . 1 . Derelict Logs Recovered 1 | . . 1 . . Drone Launches . | . . . . . Drone Recoveries . | . . . . . Exploration | -11 -10 -10 -9 -8 ------------- Run | Yrd Mat Min Mat Mat Turns Passed 1733 | 64 169 368 647 485 Spaces Moved 1095 | 64 143 443 278 167 Core 38 | 20 . . . 18 Treads 18 | . . . . 18 Legs 381 | . . . 250 131 Wheels 658 | 44 143 443 28 . Hover . | . . . . . Flight . | . . . . . Fastest Speed 50 | 50 80 80 80 100 Average Speed 123 | 70 80 80 185 190 Slowest Speed 260 | 80 80 80 260 260 Overloaded Moves . | . . . . . Propulsion Burnouts . | . . . . . Robots Hopped . | . . . . . Cave-ins Triggered . | . . . . . Exploration Rate (%) 32 | 7 34 77 26 17 Regions Visited 4 Branch Regions 1 Pre-discovered Areas 1 | . . 1 . . Known Exits Taken . | . . . . . Unknown Exits Taken 4 | 1 1 1 1 . Scrap Searched 1 | . . 1 . . Spaces Dug . | . . . . . Terrain Destroyed 96 | . 35 . 60 1 Melee . | . . . . . Projectile 1 | . . . . 1 AOE 95 | . 35 . 60 . Terrain Rammed . | . . . . . Walls Destroyed . | . . . . . Machines Disabled . | . . . . . Actions | -11 -10 -10 -9 -8 --------- Run | Yrd Mat Min Mat Mat Total 1347 | 79 168 456 383 261 Wait 93 | . . 9 62 22 Move 1091 | 63 142 442 277 167 Hop . | . . . . . Pick Up 31 | 8 4 3 10 6 Fast Attach 3 | . . . 2 1 Attach 26 | 5 2 1 8 10 Detach . | . . . . . Swap 3 | . 2 . 1 . Drop 9 | 1 . 1 6 1 Fire 79 | 2 18 . 17 42 Melee . | . . . . . Ram . | . . . . . Kick 12 | . . . . 12 Crush . | . . . . . Escape Stasis . | . . . . . Rewire . | . . . . . Trap . | . . . . . Miscellaneous . | . . . . . Route ------- -11/Scrapyard -10/Materials (discovered 2 exits: *Mat / [*Min]) -10/Mines -9/Materials -8/Materials History --------- Turn | Location | Event 2 | -11/Scrapyard | Met Revision 17 47 | -11/Scrapyard | Discovered new exit (range 8) 65 | -11/Scrapyard | Entered Materials 159 | -10/Materials | Discovered new exit (range 9) 192 | -10/Materials | Discovered new exit (range 10) 234 | -10/Materials | Entered Mines 243 | -10/Mines | Met a Derelict bent on vengeance 263 | -10/Mines | Discovered new exit (range 12) 317 | -10/Mines | Build established: Mutant 367 | -10/Mines | Learned location of Mines (-9) 415 | -10/Mines | Received a Rocket Launcher from a helpful Derelict 602 | -10/Mines | Entered Materials 602 | -9/Materials | Evolved 2 slots: Utility x1, Weapon x1 658 | -9/Materials | Lost 3 parts (1n2w) 984 | -9/Materials | Discovered new exit (range 15) 1116 | -9/Materials | Repaired Imp. Ion Engine 1249 | -9/Materials | Entered another Materials area 1249 | -8/Materials | Evolved 2 slots: Power x1, Utility x1 1402 | -8/Materials | Lost 7 parts (1p1n2u3w) 1631 | -8/Materials | Garrison activated, responded to threat 1652 | -8/Materials | Core integrity fell below 50% 1700 | -8/Materials | Lost 6 parts (2n2u2w) 1729 | -8/Materials | Core integrity fell below 20% 1734 | -8/Materials | Destroyed by G-47 Trooper with Particle Gun Last Messages --------------- K-01 Serf collects debris. S-10 Pest destroyed. ECM Suite destroyed. K-01 Serf collects debris. Assault Rifle destroyed. Acquired Titanium Leg. K-01 Serf collects debris. Carbon-fiber Leg destroyed. Connecting with Terminal... >>Alert(Purge) No threats on record. ALERT: Suspicious activity at Terminal M005. Dispatching Investigation squad. Critical hit (Burn: +37). Kicked G-47 Trooper out of the way. Critical hit (Burn: +37). Kicked G-47 Trooper. Critical hit (Burn: +37). Kicked G-47 Trooper. [Achievement: First Step to Greatness] Map ----- +----------------------------------------------------+ | ?????????????????????????????????????????????????? | | ?????????????????????????????????????????????????? | | ?????????????????????????????????????????????????? | | ?????????????????????????????????????????????????? | | ?????????????????????????????????????????????????? | | ?????????????????????????????????????????????????? | | ?????????????????????????????????????????????????? | | ?????????????????????????????????????????????????? | | ?????????????????????????????????????????????????? | | ?????????????????????????????????????????????????? | | ?????????????????????????????????????????????????? | | ?????????????????????????????????????????????????? | | ?????????????????????????????????????????????????? | | ?????????????????????????????????????????????????? | | ?????????????????????????????????????????????????? | | ?????????????????????????????????????????????????? | | ?????????????????????????????????????????????????? | | ?????????????????????????????????????????????????? | | ?????????????????????############????????????????? | | ?????????????????????# #????????????????? | | ?????????????????????# """ T #????????????????? | | ?????????????????????# """ ############?????? | | ?????????????????????# """ ## #?????? | | ?????????????????????# """ ## """ """ #?????? | | ?????????????????????# """g ## """ """ #?????? | | ?????????????????????# Y @g ## """ """ #?????? | | ?????????????????# #####g####### #?????? | | ???????????? + %" #?????? | | ???????????? ###### " % #?????? | | ???????????? #????# %#?????? | | ????????????? #### ##########????#########+####### | | ????????????????????# ###????# | | ????????????????????# """ # ??# | | ????????????????????# """"" # """ # """ | | ????????????????????# """"" # """ + "G """ | | ????????????????????# """"" # """ # """ """" | | ????????????????????# """ # ??# """" | | ????????????????????# # ????# """" | | ??????????????# ] =#######+######### """% | | ??????????????# | | ??????????????#= T | | ??????????????# ### #### ######## """ "" | | ?????????????????????#????# #??????# """"" "" | | ??????????????????????????+ +??????# """"" "" | | ????????????????????????? # #??????# """"" "" | | ???????????????????????? ?# #??????# """ | | ??????????????????????? ?# #??????# | | ?????????????????????? ??# #??????# % / | | ??????????????????????#???? #??????####+########## | | ???????????????????????????+#??????# #????# | +----------------------------------------------------+ Best States ------------- Heat Dissipation 31 Energy Generation 12 Energy Capacity 415 Matter Stores 300 Matter Capacity 500 Sight Range 16 Terrain Scan Density 10 ECM Strength 1 Armor Coverage 300 Evasion (%) 50 Recoil Reduction 1 Item Schematics ----------------- None Robot Schematics ------------------ None Fabricated ------------ Nothing Alien Tech Used ----------------- None Achievements -------------- First Step to Greatness Part-time Mechanic Storm Trooper Challenges ------------ None Game ------ Seed CorruptionActuatorClaw Manual? 0 Play Time 00:35:06 Cumulative 1.2 hours Start 2024.04.02 @ 14:39:34 End 2024.04.02 @ 15:33:18 Sessions 3 Manual Loads 0 Difficulty Rogue Special Mode None Game No. 2 Rogue 2 Adventurer 0 Explorer 0 Win Type - Total 0 Types 0/0/0/0/0/0/0/0/0 Lore% 1 Gallery% 3 Achievement% 3 Wizard Run 0 Options --------- Layout 1 ASCII 0 Keyboard 0 Movement Arrows Keybinds 0 Fullscreen 1 Font 24/Tamsyn Map View 50x35 Zoom Use 0% Tactical HUD 0 Map Filters NONE Filters NONE Steam 1 RUN: b1bf9dd5-5ab7-4eee-8222-eade1f8b30d3